lending/lending_fUSD_20250408
["ID","MTS","AMOUNT","RATE_DAILY","PERIOD"]
[357545975,1744135855935,-500.0,0.00052876,120]
[357545976,1744135855945,-500.0,0.00052876,120]
[357545977,1744135855955,-488.32571486,0.00052876,120]
[357545978,1744135855965,-729.33,0.00052876,30]
[357545979,1744135855974,-500.0,0.00052876,120]
[357545980,1744135855983,-500.0,0.00052876,120]
[357545981,1744135855993,-583.31,0.00052876,120]
[357545982,1744135856004,-500.0,0.00052876,120]
[357545983,1744135856013,-500.0,0.00052876,120]
[357545984,1744135856024,-1155.37,0.00052876,120]
[357545985,1744135856033,-500.0,0.00052876,120]
[357545986,1744135856043,-651.5,0.00052876,120]
[357545987,1744135856053,-500.0,0.00052876,120]
[357545988,1744135856062,-500.0,0.00052876,120]
[357545989,1744135856072,-500.0,0.00052876,120]
[357545990,1744135856082,-500.0,0.00052876,120]
[357545991,1744135856092,-500.0,0.00052876,120]
[357545992,1744135856102,-537.52786046,0.00052876,120]
[357545993,1744135856112,-649.48542389,0.00052876,120]
[357545994,1744135856121,-500.0,0.00052876,120]
[357545995,1744135856131,-500.0,0.00052876,120]
[357545996,1744135856140,-500.0,0.00052876,120]
[357545997,1744135856150,-986.5,0.00052876,120]
[357545998,1744135856159,-829.06,0.00052876,120]
[357545999,1744135856170,-500.0,0.00052876,120]
[357546000,1744135856179,-500.0,0.00052876,120]
[357546001,1744135856189,-500.0,0.00052876,120]
[357546002,1744135856199,-500.0,0.00052876,120]
[357546003,1744135856208,-584.62778024,0.00052876,120]
[357546004,1744135856218,-500.0,0.00052876,120]
[357546005,1744135856228,-500.0,0.00052876,120]
[357546006,1744135856238,-500.0,0.00052876,120]
[357546007,1744135856247,-499.58858354,0.00052876,120]
[357546008,1744135856259,-853.97,0.00052876,120]
[357546009,1744135856269,-500.0,0.00052876,120]
[357546010,1744135856278,-500.0,0.00052876,120]
[357546011,1744135856288,-2000.0,0.00052876,2]
[357546012,1744135856298,-500.0,0.00052876,120]
[357546013,1744135856307,-839.17,0.00052876,120]
[357546014,1744135856317,-500.0,0.00052876,120]
[357546015,1744135856327,-500.0,0.00052876,120]
[357546016,1744135856337,-500.0,0.00052876,120]
[357546017,1744135856346,-500.0,0.00052876,120]
[357546018,1744135856356,-500.0,0.00052876,2]
[357546019,1744135856366,-500.0,0.00052876,120]
[357546020,1744135856375,-500.0,0.00052876,2]
[357546021,1744135856385,-702.55,0.00052876,120]
[357546022,1744135856395,-602.66449115,0.00052876,120]
[357546023,1744135856405,-500.0,0.00052876,120]
[357546024,1744135856414,-500.0,0.00052876,120]
[357546025,1744135856424,-500.0,0.00052876,120]
[357546026,1744135856434,-500.0,0.00052876,2]
[357546027,1744135856443,-521.25230293,0.00052876,120]
[357546028,1744135856453,-677.2,0.00052876,120]
[357546029,1744135856463,-790.51,0.00052876,120]
[357546030,1744135856473,-500.0,0.00052876,120]
[357546031,1744135856482,-500.0,0.00052876,120]
[357546032,1744135856492,-500.0,0.00052876,120]
[357546033,1744135856502,-717.93,0.00052876,120]
[357546034,1744135856512,-500.0,0.00052876,120]
[357546035,1744135856522,-500.0,0.00052876,120]
[357546036,1744135856532,-500.0,0.00052876,2]
[357546037,1744135856542,-1019.54,0.00052876,120]
[357546038,1744135856551,-500.0,0.00052876,120]
[357546039,1744135856561,-500.0,0.00052876,120]
[357546040,1744135856571,-571.65,0.00052876,120]
[357546041,1744135856580,-242.9129022,0.00052876,120]
[357546042,1744135856590,-500.0,0.00052876,120]
[357546043,1744135856599,-500.0,0.00052876,120]
[357546044,1744135856610,-510.18300163,0.00052876,120]
[357546045,1744135856622,-500.0,0.00052876,120]
[357546046,1744135856632,-500.0,0.00052876,120]
[357546047,1744135856641,-567.81,0.00052876,120]
[357546048,1744135856652,-500.0,0.00052876,120]
[357546049,1744135856662,-954.85,0.00052876,120]
[357546050,1744135856671,-500.0,0.00052876,120]
[357546051,1744135856680,-500.0,0.00052876,120]
[357546052,1744135856691,-1425.74,0.00052876,30]
[357546053,1744135856700,-1998.88,0.00052876,120]
[357546054,1744135856711,-500.0,0.00052876,120]
[357546055,1744135856720,-500.0,0.00052876,120]
[357546056,1744135856729,-1354.7,0.00052876,120]
[357546057,1744135856738,-516.63630193,0.00052876,120]
[357546058,1744135856748,-500.0,0.00052876,120]
[357546059,1744135856758,-500.0,0.00052876,120]
[357546060,1744135856768,-500.0,0.00052876,120]
[357546061,1744135856777,-1000.0,0.00052876,35]
[357546062,1744135856787,-500.0,0.00052876,120]
[357546063,1744135856796,-500.0,0.00052876,120]
[357546064,1744135856806,-509.4634735,0.00052876,7]
[357546065,1744135856815,-1046.86,0.00052876,120]
[357546066,1744135856824,-537.7,0.00052876,120]
[357546067,1744135856833,-500.0,0.00052876,120]
[357546068,1744135856843,-524.83,0.00052876,120]
[357546069,1744135856852,-500.0,0.00052876,120]
[357546070,1744135856862,-407.95480982,0.00052876,120]
[357546071,1744135856871,-500.0,0.00052876,120]
[357546072,1744135856881,-500.0,0.00052876,2]
[357546073,1744135856891,-500.0,0.00052876,120]
[357546074,1744135856900,-812.56,0.00052876,120]
[357546075,1744135856981,-1644.68,0.00052876,120]
[357546076,1744135856991,-884.4,0.00052876,120]
[357546077,1744135857000,-527.07433119,0.00052876,120]
[357546078,1744135857011,-500.0,0.00052876,120]
[357546079,1744135857021,-727.96,0.00052876,120]
[357546080,1744135857030,-500.0,0.00052876,120]
[357546081,1744135857039,-500.0,0.00052876,120]
[357546082,1744135857048,-500.0,0.00052876,120]
[357546083,1744135857058,-1273.1,0.00052876,120]
[357546084,1744135857067,-500.0,0.00052876,120]
[357546085,1744135857076,-508.1134886,0.00052876,120]
[357546086,1744135857085,-500.0,0.00052876,120]
[357546087,1744135857094,-500.0,0.00052876,120]
[357546088,1744135857103,-1048.09,0.00052876,120]
[357546089,1744135857112,-500.0,0.00052876,120]
[357546090,1744135857122,-514.90703757,0.00052876,120]
[357546091,1744135857131,-965.74,0.00052876,120]
[357546092,1744135857140,-500.0,0.00052876,120]
[357546093,1744135857149,-500.0,0.00052876,120]
[357546094,1744135857158,-500.0,0.00052876,120]
[357546095,1744135857168,-554.97,0.00052876,120]
[357546096,1744135857177,-500.0,0.00052876,120]
[357546097,1744135857186,-500.0,0.00052876,120]
[357546098,1744135857195,-593.46340429,0.00052876,120]
[357546099,1744135857204,-794.37,0.00052876,120]
[357546100,1744135857213,-500.0,0.00052876,120]
[357546101,1744135857222,-500.0,0.00052876,120]
[357546102,1744135857231,-500.0,0.00052876,120]
[357546103,1744135857240,-635.52,0.00052876,120]
[357546104,1744135857249,-500.0,0.00052876,120]
[357546105,1744135857258,-530.29,0.00052876,120]
[357546106,1744135857267,-500.0,0.00052876,120]
[357546107,1744135857277,-500.0,0.00052876,120]
[357546108,1744135857286,-1026.05,0.00052876,120]
[357546109,1744135857294,-500.0,0.00052876,120]
[357546110,1744135857303,-500.0,0.00052876,120]
[357546111,1744135857312,-500.0,0.00052876,120]
[357546112,1744135857321,-500.0,0.00052876,120]
[357546113,1744135857331,-541.89,0.00052876,120]
[357546114,1744135857340,-151.0,0.00052876,120]
[357546115,1744135857349,-500.0,0.00052876,120]
[357546116,1744135857359,-151.0,0.00052876,120]
[357546117,1744135857368,-500.0,0.00052876,120]
[357546118,1744135857377,-519.17519402,0.00052876,120]
[357546119,1744135857386,-151.0,0.00052876,120]
[357546120,1744135857395,-500.0,0.00052876,120]
[357546121,1744135857404,-151.0,0.00052876,120]
[357546122,1744135857413,-500.0,0.00052876,120]
[357546123,1744135857422,-500.0,0.00052876,120]
[357546124,1744135857432,-500.0,0.00052876,120]
[357546125,1744135857440,-913.6,0.00052876,120]
[357546126,1744135857450,-581.87,0.00052876,120]
[357546127,1744135857459,-500.0,0.00052876,120]
[357546128,1744135857468,-500.0,0.00052876,120]
[357546129,1744135857478,-500.0,0.00052876,120]
[357546130,1744135857487,-640.64,0.00052876,30]
[357546131,1744135857497,-500.0,0.00052876,120]
[357546132,1744135857507,-500.0,0.00052876,120]
[357546133,1744135857516,-500.0,0.00052876,120]
[357546134,1744135857525,-541.35,0.00052876,120]
[357546135,1744135857534,-500.0,0.00052876,120]
[357546136,1744135857544,-500.0,0.00052876,120]
[357546137,1744135857553,-500.0,0.00052876,120]
[357546138,1744135857563,-500.0,0.00052876,120]
[357546139,1744135857572,-500.0,0.00052876,120]
[357546140,1744135857581,-500.0,0.00052876,120]
[357546141,1744135857590,-985.93,0.00052876,120]
[357546142,1744135857599,-500.0,0.00052876,120]
[357546143,1744135857613,-531.64,0.00052876,120]
[357546144,1744135857622,-500.0,0.00052876,120]
[357546145,1744135857631,-500.0,0.00052876,120]
[357546146,1744135857641,-500.0,0.00052876,120]
[357546147,1744135857651,-500.0,0.00052876,120]
[357546148,1744135857660,-500.0,0.00052876,120]
[357546149,1744135857669,-1206.08,0.00052876,120]
[357546150,1744135857679,-500.0,0.00052876,120]
[357546151,1744135857688,-500.0,0.00052876,120]
[357546152,1744135857698,-584.52383206,0.00052876,120]
[357546153,1744135857707,-500.0,0.00052876,120]
[357546154,1744135857716,-500.0,0.00052876,120]
[357546155,1744135857727,-500.0,0.00052876,120]
[357546156,1744135857736,-500.0,0.00052876,120]
[357546157,1744135857745,-706.13,0.00052876,120]
[357546158,1744135857755,-500.0,0.00052876,120]
[357546159,1744135857764,-500.0,0.00052876,120]
[357546160,1744135857774,-500.0,0.00052876,120]
[357546161,1744135857783,-500.0,0.00052876,120]
[357546162,1744135857792,-500.0,0.00052876,120]
[357546163,1744135857801,-500.0,0.00052876,120]
[357546164,1744135857811,-1079.35,0.00052876,120]
[357546165,1744135857820,-500.0,0.00052876,120]
[357546166,1744135857829,-500.0,0.00052876,120]
[357546167,1744135857841,-500.0,0.00052876,120]
[357546168,1744135857851,-500.0,0.00052876,120]
[357546169,1744135857860,-726.46,0.00052876,120]
[357546170,1744135857870,-500.0,0.00052876,120]
[357546171,1744135857879,-500.0,0.00052876,120]
[357546172,1744135857889,-445.50186999,0.00052876,120]
[357546173,1744135857898,-615.19,0.00052876,120]
[357546174,1744135857907,-500.0,0.00052876,120]
[357546175,1744135857917,-1342.18,0.00052876,120]
[357546176,1744135857926,-500.0,0.00052876,120]
[357546177,1744135857935,-687.95,0.00052876,120]
[357546178,1744135857943,-500.0,0.00052876,120]
[357546179,1744135857953,-646.6,0.00052876,120]
[357546180,1744135857962,-500.0,0.00052876,120]
[357546181,1744135857971,-545.99648473,0.00052876,120]
[357546182,1744135857980,-547.83,0.00052876,120]
[357546183,1744135857989,-500.0,0.00052876,120]
[357546184,1744135857998,-513.92,0.00052876,120]
[357546185,1744135858008,-500.0,0.00052876,120]
[357546186,1744135858018,-1247.459857,0.00052876,120]
[357546187,1744135858027,-396.28,0.00052876,120]
[357546188,1744135858036,-500.0,0.00052876,120]
[357546189,1744135858046,-500.0,0.00052876,7]
[357546190,1744135858055,-500.0,0.00052876,120]
[357546191,1744135858064,-3011.86,0.00052876,120]
[357546192,1744135858073,-500.0,0.00052876,120]
[357546193,1744135858082,-500.0,0.00052876,120]
[357546194,1744135858091,-711.83,0.00052876,120]
[357546195,1744135858101,-500.0,0.00052876,120]
[357546196,1744135858110,-500.0,0.00052876,120]
[357546197,1744135858120,-522.42343502,0.00052876,120]
[357546198,1744135858129,-500.0,0.00052876,120]
[357546199,1744135858138,-853.97,0.00052876,120]
[357546200,1744135858147,-565.31844348,0.00052876,120]
[357546201,1744135858156,-588.885889,0.00052876,120]
[357546202,1744135858165,-500.0,0.00052876,120]
[357546203,1744135858174,-500.0,0.00052876,120]
[357546204,1744135858183,-500.0,0.00052876,120]
[357546205,1744135858193,-627.5,0.00052876,120]
[357546206,1744135858202,-500.0,0.00052876,120]
[357546207,1744135858211,-500.0,0.00052876,120]
[357546208,1744135858221,-500.0,0.00052876,120]
[357546209,1744135858230,-595.62,0.00052876,120]
[357546210,1744135858239,-500.0,0.00052876,120]
[357546211,1744135858248,-502.86085126,0.00052876,120]
[357546212,1744135858259,-500.0,0.00052876,120]
[357546213,1744135858268,-500.0,0.00052876,120]
[357546214,1744135858277,-631.1,0.00052876,120]
[357546215,1744135858286,-500.0,0.00052876,120]
[357546216,1744135858295,-500.0,0.00052876,120]
[357546217,1744135858303,-500.0,0.00052876,120]
[357546218,1744135858312,-500.0,0.00052876,120]
[357546219,1744135858321,-500.0,0.00052876,120]
[357546220,1744135858331,-500.0,0.00052876,120]
[357546221,1744135858340,-500.0,0.00052876,120]
[357546222,1744135858348,-935.92,0.00052876,120]
[357546223,1744135858358,-500.0,0.00052876,120]
[357546224,1744135858367,-500.0,0.00052876,120]
[357546225,1744135858376,-500.0,0.00052876,120]
[357546226,1744135858385,-500.0,0.00052876,120]
[357546227,1744135858394,-500.0,0.00052876,120]
[357546228,1744135858403,-500.0,0.00052876,120]
[357546229,1744135858412,-500.0,0.00052876,120]
[357546230,1744135858422,-500.0,0.00052876,120]
[357546231,1744135858432,-500.0,0.00052876,120]
[357546232,1744135858441,-500.0,0.00052876,120]
[357546233,1744135858451,-500.0,0.00052876,120]
[357546234,1744135858460,-500.0,0.00052876,120]
[357546235,1744135858469,-882.81,0.00052876,120]
[357546236,1744135858479,-500.0,0.00052876,120]
[357546237,1744135858488,-623.11,0.00052876,120]
[357546238,1744135858498,-500.0,0.00052876,120]
[357546239,1744135858508,-702.1,0.00052876,120]
[357546240,1744135858517,-500.0,0.00052876,120]
[357546241,1744135858526,-594.48,0.00052876,120]
[357546242,1744135858536,-500.0,0.00052876,120]
[357546243,1744135858545,-500.0,0.00052876,120]
[357546244,1744135858554,-502.53590003,0.00052876,120]
[357546245,1744135858564,-500.0,0.00052876,120]
[357546246,1744135858573,-1282.28,0.00052876,120]
[357546247,1744135858583,-500.0,0.00052876,120]
[357546248,1744135858592,-500.0,0.00052876,120]
[357546249,1744135858602,-850.45,0.00052876,120]
[357546250,1744135858612,-540.94,0.00052876,120]
[357546251,1744135858624,-578.96523035,0.00052876,120]
[357546252,1744135858634,-151.0,0.00052876,120]
[357546253,1744135858643,-151.0,0.00052876,120]
[357546254,1744135858654,-151.0,0.00052876,120]
[357546255,1744135858664,-512.68480062,0.00052876,120]
[357546256,1744135858674,-151.0,0.00052876,120]
[357546257,1744135858684,-503.9952718,0.00052876,120]
[357546258,1744135858695,-500.0,0.00052876,120]
[357546259,1744135858706,-151.0,0.00052876,120]
[357546260,1744135858715,-151.0,0.00052876,120]
[357546261,1744135858725,-250.018202,0.00052876,120]
[357546262,1744135858736,-763.5,0.00052876,120]
[357546263,1744135858746,-503.16032705,0.00052876,120]
[357546264,1744135858755,-660.48,0.00052876,120]
[357546265,1744135858766,-768.76,0.00052876,120]
[357546266,1744135858776,-500.0,0.00052876,120]
[357546267,1744135858785,-566.76564223,0.00052876,120]
[357546268,1744135858795,-500.0,0.00052876,120]
[357546269,1744135858805,-554.59813671,0.00052876,120]
[357546270,1744135858815,-828.56,0.00052876,120]
[357546271,1744135858825,-500.0,0.00052876,120]
[357546272,1744135858835,-500.0,0.00052876,120]
[357546273,1744135858845,-500.0,0.00052876,120]
[357546274,1744135858854,-500.0,0.00052876,120]
[357546275,1744135858864,-510.01981561,0.00052876,120]
[357546276,1744135858873,-222.15025898,0.00052876,120]
[357546277,1744135858883,-500.0,0.00052876,120]
[357546278,1744135858892,-959.29,0.00052876,120]
[357546279,1744135858902,-500.0,0.00052876,120]
[357546280,1744135858912,-516.93,0.00052876,120]
[357546281,1744135858922,-500.0,0.00052876,120]
[357546282,1744135858931,-500.0,0.00052876,120]
[357546283,1744135858941,-500.0,0.00052876,120]
[357546284,1744135858951,-500.0,0.00052876,120]
[357546285,1744135858960,-500.0,0.00052876,120]
[357546286,1744135858970,-500.0,0.00052876,120]
[357546287,1744135858980,-500.0,0.00052876,120]
[357546288,1744135858989,-500.0,0.00052876,120]
[357546289,1744135858999,-500.0,0.00052876,120]
[357546290,1744135859010,-500.0,0.00052876,120]
[357546291,1744135859019,-566.02,0.00052876,120]
[357546292,1744135859029,-520.28447904,0.00052876,120]
[357546293,1744135859038,-500.0,0.00052876,120]
[357546294,1744135859049,-502.53197201,0.00052876,120]
[357546295,1744135859059,-714.7,0.00052876,120]
[357546296,1744135859068,-545.58099885,0.00052876,120]
[357546297,1744135859078,-620.16,0.00052876,120]
[357546298,1744135859088,-2000.0,0.00052876,30]
[357546299,1744135859098,-683.43,0.00052876,120]
[357546300,1744135859107,-963.69,0.00052876,120]
[357546301,1744135859117,-528.14,0.00052876,120]
[357546302,1744135859126,-500.0,0.00052876,120]
[357546303,1744135859136,-500.0,0.00052876,120]
[357546304,1744135859146,-500.0,0.00052876,120]
[357546305,1744135859155,-516.04302122,0.00052876,120]
[357546306,1744135859165,-500.0,0.00052876,120]
[357546307,1744135859174,-500.0,0.00052876,120]
[357546308,1744135859184,-500.0,0.00052876,120]
[357546309,1744135859194,-515.4969397,0.00052876,120]
[357546310,1744135859204,-524.59,0.00052876,120]
[357546311,1744135859213,-500.0,0.00052876,120]
[357546312,1744135859223,-500.0,0.00052876,120]
[357546313,1744135859233,-500.0,0.00052876,120]
[357546314,1744135859243,-500.0,0.00052876,120]
[357546315,1744135859253,-500.0,0.00052876,120]
[357546316,1744135859263,-535.61140562,0.00052876,120]
[357546317,1744135859273,-529.17488134,0.00052876,120]
[357546318,1744135859283,-500.0,0.00052876,120]
[357546319,1744135859293,-1529.63,0.00052876,120]
[357546320,1744135859303,-524.58,0.00052876,120]
[357546321,1744135859312,-500.0,0.00052876,120]
[357546322,1744135859322,-737.15,0.00052876,120]
[357546323,1744135859332,-500.0,0.00052876,120]
[357546324,1744135859342,-500.0,0.00052876,120]
[357546325,1744135859352,-500.0,0.00052876,120]
[357546326,1744135859362,-502.4414077,0.00052876,120]
[357546327,1744135859372,-500.0,0.00052876,120]
[357546328,1744135859382,-500.0,0.00052876,120]
[357546329,1744135859391,-577.69,0.00052876,120]
[357546330,1744135859401,-500.0,0.00052876,120]
[357546331,1744135859411,-500.0,0.00052876,120]
[357546332,1744135859425,-500.0,0.00052876,120]
[357546333,1744135859435,-505.48,0.00052876,120]
[357546334,1744135859444,-500.0,0.00052876,120]
[357546335,1744135859454,-500.0,0.00052876,120]
[357546336,1744135859464,-500.0,0.00052876,120]
[357546337,1744135859474,-516.06258978,0.00052876,120]
[357546338,1744135859483,-500.0,0.00052876,120]
[357546339,1744135859493,-594.23,0.00052876,120]
[357546340,1744135859503,-500.0,0.00052876,120]
[357546341,1744135859513,-500.0,0.00052876,120]
[357546342,1744135859523,-518.94313698,0.00052876,120]
[357546343,1744135859533,-797.82,0.00052876,120]
[357546344,1744135859543,-501.68176331,0.00052876,60]
[357546345,1744135859553,-500.0,0.00052876,120]
[357546346,1744135859562,-500.0,0.00052876,120]
[357546347,1744135859572,-500.0,0.00052876,120]
[357546348,1744135859581,-500.0,0.00052876,120]
[357546349,1744135859591,-500.0,0.00052876,120]
[357546350,1744135859602,-500.0,0.00052876,120]
[357546351,1744135859615,-570.96,0.00052876,120]
[357546352,1744135859624,-543.04352538,0.00052876,120]
[357546353,1744135859634,-500.0,0.00052876,120]
[357546354,1744135859644,-500.0,0.00052876,120]
[357546355,1744135859655,-554.84,0.00052876,120]
[357546356,1744135859665,-500.0,0.00052876,120]
[357546357,1744135859674,-500.0,0.00052876,120]
[357546358,1744135859686,-1205.99,0.00052876,120]
[357546359,1744135859696,-737.46,0.00052876,120]
[357546360,1744135859706,-511.51689646,0.00052876,120]
[357546361,1744135859715,-500.0,0.00052876,120]
[357546362,1744135859725,-282.97046141,0.00052876,120]
[357546363,1744135859735,-500.0,0.00052876,120]
[357546364,1744135859744,-508.06,0.00052876,120]
[357546365,1744135859754,-500.0,0.00052876,120]
[357546366,1744135859763,-500.0,0.00052876,120]
[357546367,1744135859774,-830.9,0.00052876,120]
[357546368,1744135859783,-500.0,0.00052876,120]
[357546369,1744135859793,-500.0,0.00052876,120]
[357546370,1744135859803,-500.0,0.00052876,120]
[357546371,1744135859812,-500.0,0.00052876,120]
[357546372,1744135859822,-500.0,0.00052876,120]
[357546373,1744135859831,-593.3,0.00052876,120]
[357546374,1744135859841,-500.0,0.00052876,120]
[357546375,1744135859850,-568.34,0.00052876,120]
[357546376,1744135859860,-500.0,0.00052876,120]
[357546377,1744135859869,-216.27550883,0.00052876,120]
[357546378,1744135859879,-547.36,0.00052876,120]
[357546379,1744135859888,-500.0,0.00052876,120]
[357546380,1744135859898,-500.0,0.00052876,120]
[357546381,1744135859907,-500.0,0.00052876,120]
[357546382,1744135859917,-512.59,0.00052876,120]
[357546383,1744135859926,-514.96144159,0.00052876,120]
[357546384,1744135859936,-500.0,0.00052876,120]
[357546385,1744135859945,-512.0353687,0.00052876,120]
[357546386,1744135859955,-500.0,0.00052876,120]
[357546387,1744135859964,-500.0,0.00052876,120]
[357546388,1744135859974,-500.0,0.00052876,120]
[357546389,1744135859984,-505.70087343,0.00052876,120]
[357546390,1744135859995,-500.0,0.00052876,120]
[357546391,1744135860004,-500.0,0.00052876,120]
[357546392,1744135860015,-600.21,0.00052876,120]
[357546393,1744135860024,-500.0,0.00052876,120]
[357546394,1744135860033,-1080.18,0.00052876,120]
[357546395,1744135860043,-500.0,0.00052876,120]
[357546396,1744135860053,-500.0,0.00052876,120]
[357546397,1744135860063,-500.0,0.00052876,120]
[357546398,1744135860073,-500.0,0.00052876,120]
[357546399,1744135860083,-500.0,0.00052876,120]
[357546400,1744135860093,-500.0,0.00052876,120]
[357546401,1744135860103,-500.0,0.00052876,120]
[357546402,1744135860113,-500.0,0.00052876,120]
[357546403,1744135860122,-500.0,0.00052876,120]
[357546404,1744135860132,-565.33,0.00052876,120]
[357546405,1744135860142,-500.0,0.00052876,120]
[357546406,1744135860152,-1102.49,0.00052876,120]
[357546407,1744135860161,-627.68,0.00052876,120]
[357546408,1744135860171,-500.0,0.00052876,120]
[357546409,1744135860180,-500.0,0.00052876,120]
[357546410,1744135860190,-500.0,0.00052876,120]
[357546411,1744135860199,-500.0,0.00052876,120]
[357546412,1744135860210,-500.0,0.00052876,120]
[357546413,1744135860220,-500.0,0.00052876,120]
[357546414,1744135860230,-500.0,0.00052876,120]
[357546415,1744135860240,-536.35514347,0.00052876,120]
[357546416,1744135860250,-479.2687787,0.00052876,120]
[357546417,1744135860261,-500.0,0.00052876,120]
[357546418,1744135860271,-500.0,0.00052876,120]
[357546419,1744135860280,-500.0,0.00052876,120]
[357546420,1744135860290,-500.0,0.00052876,120]
[357546421,1744135860300,-651.86,0.00052876,120]
[357546422,1744135860309,-500.0,0.00052876,120]
[357546423,1744135860319,-500.0,0.00052876,120]
[357546424,1744135860329,-615.97,0.00052876,3]
[357546425,1744135860339,-1008.75,0.00052876,120]
[357546426,1744135860348,-500.0,0.00052876,120]
[357546427,1744135860358,-297.9882944,0.00052876,120]
[357546428,1744135860368,-500.0,0.00052876,120]
[357546429,1744135860378,-548.5,0.00052876,120]
[357546430,1744135860387,-500.0,0.00052876,120]
[357546431,1744135860398,-500.0,0.00052876,120]
[357546432,1744135860408,-500.0,0.00052876,120]
[357546433,1744135860417,-630.49,0.00052876,120]
[357546434,1744135860428,-500.0,0.00052876,120]
[357546435,1744135860437,-1865.07,0.00052876,120]
[357546436,1744135860447,-546.05,0.00052876,120]
[357546437,1744135860457,-500.0,0.00052876,120]
[357546438,1744135860468,-500.0,0.00052876,120]
[357546439,1744135860477,-511.68,0.00052876,120]
[357546440,1744135860488,-564.61,0.00052876,120]
[357546441,1744135860497,-500.0,0.00052876,120]
[357546442,1744135860509,-763.62,0.00052876,120]
[357546443,1744135860519,-500.0,0.00052876,120]
[357546444,1744135860529,-500.0,0.00052876,120]
[357546445,1744135860539,-1679.19,0.00052876,120]
[357546446,1744135860549,-500.0,0.00052876,120]
[357546447,1744135860559,-500.0,0.00052876,120]
[357546448,1744135860568,-500.0,0.00052876,120]
[357546449,1744135860578,-506.41944186,0.00052876,120]
[357546450,1744135860588,-660.04,0.00052876,120]
[357546451,1744135860597,-500.0,0.00052876,120]
[357546452,1744135860607,-554.22,0.00052876,120]
[357546453,1744135860619,-500.0,0.00052876,120]
[357546454,1744135860629,-490.83215218,0.00052876,120]
[357546455,1744135860639,-722.4,0.00052876,120]
[357546456,1744135860648,-536.4679616,0.00052876,120]
[357546457,1744135860659,-592.49654051,0.00052876,120]
[357546458,1744135860668,-1478.16,0.00052876,120]
[357546459,1744135860678,-799.85,0.00052876,120]
[357546460,1744135860688,-780.29,0.00052876,120]
[357546461,1744135860700,-602.6,0.00052876,120]
[357546462,1744135860710,-500.0,0.00052876,120]
[357546463,1744135860719,-500.0,0.00052876,120]
[357546464,1744135860729,-646.7,0.00052876,120]
[357546465,1744135860739,-500.0,0.00052876,120]
[357546466,1744135860749,-500.0,0.00052876,120]
[357546467,1744135860760,-613.26,0.00052876,120]
[357546468,1744135860770,-500.0,0.00052876,120]
[357546469,1744135860781,-500.0,0.00052876,120]
[357546470,1744135860791,-500.0,0.00052876,120]
[357546471,1744135860998,-274.427264,0.00052876,120]
[357546472,1744135861010,-1227.77,0.00052876,120]
[357546473,1744135861019,-500.0,0.00052876,120]
[357546474,1744135861028,-500.0,0.00052876,120]